bitfinex/quotes_BTCUSD_20250303
["timestamp","ask_amount","ask_price","bid_price","bid_amount"]
[1741015136795,0.1,90283.0,90282.0,0.00539883]
[1741015136796,0.101,90283.0,90282.0,0.00539883]
[1741015136980,0.1,90283.0,90282.0,0.00239883]
[1741015137381,0.1,90283.0,90282.0,0.00539883]
[1741015137382,0.101,90283.0,90282.0,0.00539883]
[1741015137592,0.1,90283.0,90282.0,0.00239883]
[1741015139280,0.11837463,90283.0,90282.0,0.00939883]
[1741015139566,0.11737463,90283.0,90282.0,0.00239883]
[1741015139704,0.11837463,90283.0,90282.0,0.00939883]
[1741015139899,0.11737463,90283.0,90282.0,0.00239883]
[1741015140115,0.28351863,90283.0,90282.0,0.00239883]
[1741015140317,0.28451863,90283.0,90282.0,0.00939883]
[1741015140515,0.11837463,90283.0,90282.0,0.00939883]
[1741015140713,0.12031331,90283.0,90282.0,0.00939883]
[1741015140919,0.266232,90235.0,90234.0,0.0001702]
[1741015141132,0.1,90262.0,90234.0,0.0001702]
[1741015141133,0.02336242,90319.0,90305.0,0.5]
[1741015141356,0.1,90365.0,90356.0,0.16601]
[1741015141559,0.1,90375.0,90341.0,0.00847538]
[1741015141762,0.1,90383.0,90320.0,0.45030728]
[1741015141960,0.10201,90370.0,90331.0,0.3]
[1741015142272,0.1,90362.0,90331.0,0.3]
[1741015142689,0.1,90362.0,90361.0,0.3]
[1741015142883,0.1,90363.0,90362.0,0.3]
[1741015143084,0.1,90363.0,90351.0,0.1636]
[1741015143085,0.00240809,90370.0,90369.0,0.3]
[1741015143330,0.00240809,90370.0,90369.0,0.29988245]
[1741015143745,0.00240809,90370.0,90351.0,0.1636]
[1741015143746,0.1,90369.0,90351.0,0.1626]
[1741015144112,0.00240809,90370.0,90369.0,0.18052685]
[1741015144313,0.00240809,90370.0,90369.0,0.01454085]
[1741015144532,0.10240809,90370.0,90351.0,0.1626]
[1741015144739,0.1,90368.0,90366.0,0.165989]
[1741015144940,0.10240809,90370.0,90352.0,0.01454085]
[1741015145247,0.10240809,90370.0,90368.0,0.165987]
[1741015145445,0.00240809,90370.0,90369.0,0.01454085]
[1741015145592,0.10240809,90370.0,90352.0,0.3]
[1741015145951,0.10240809,90370.0,90364.0,0.01454085]
[1741015146251,0.10240809,90370.0,90340.0,0.45030728]
[1741015146465,0.1,90356.0,90318.0,0.033292]
[1741015146610,0.1,90356.0,90310.0,0.5]
[1741015146611,0.1,90356.0,90319.0,0.16348]
[1741015146812,0.1,90356.0,90320.0,0.45030728]
[1741015146998,0.1,90366.0,90340.0,0.45030728]
[1741015147195,0.1,90361.0,90331.0,0.3]
[1741015147403,0.1,90361.0,90359.0,0.166003]
[1741015147604,0.1,90361.0,90355.0,0.01454085]
[1741015147814,0.1,90356.0,90321.0,0.3]
[1741015148013,0.1,90356.0,90320.0,0.45030728]
[1741015148214,0.1,90356.0,90330.0,0.45030728]
[1741015148441,0.1,90356.0,90331.0,0.16344]
[1741015148636,0.1,90356.0,90344.0,0.01454085]
[1741015148848,0.1,90356.0,90331.0,0.16344]
[1741015148849,0.1,90356.0,90336.0,0.221395]
[1741015149076,0.1,90356.0,90332.0,0.01454085]
[1741015149296,0.1,90356.0,90341.0,0.01454085]
[1741015149474,0.1,90356.0,90350.0,0.01454085]
[1741015149794,0.101,90356.0,90350.0,0.01454085]
[1741015150005,0.1,90356.0,90346.0,0.01454085]
[1741015150138,0.221316,90369.0,90299.0,0.365523]
[1741015150139,0.1,90347.0,90299.0,0.033295]
[1741015150345,0.0495,90351.0,90293.0,0.16336]
[1741015150346,0.1,90299.0,90293.0,0.16336]
[1741015150579,0.1,90294.0,90293.0,0.16336]
[1741015151001,0.1,90294.0,90282.0,0.0001699]
[1741015151176,0.4,90337.0,90282.0,0.0001699]
[1741015151177,0.1,90356.0,90288.0,0.16336]
[1741015151558,0.1,90315.0,90288.0,0.16336]
[1741015151922,0.1,90315.0,90312.0,0.166089]
[1741015152131,0.1,90313.0,90288.0,0.16336]
[1741015152326,0.1,90306.0,90291.0,0.221504]
[1741015152529,0.1,90300.0,90289.0,0.16332]
[1741015152670,0.3,90342.0,90289.0,0.16332]
[1741015152671,0.1,90291.0,90289.0,0.16332]
[1741015152886,0.01736496,90325.0,90289.0,0.16332]
[1741015152887,0.1,90296.0,90289.0,0.16332]
[1741015153087,0.1,90296.0,90295.0,0.165122]
[1741015153285,0.1,90296.0,90292.0,0.166127]
[1741015153510,0.1,90290.0,90282.0,0.0001699]
[1741015153710,0.01736496,90325.0,90282.0,0.0001699]
[1741015153711,0.1,90283.0,90282.0,0.0001699]
[1741015155497,0.11916562,90283.0,90282.0,0.0001699]
[1741015156116,0.11916562,90283.0,90282.0,0.0041699]
[1741015156117,0.12016562,90283.0,90282.0,0.0041699]
[1741015156323,0.28630962,90283.0,90282.0,0.0041699]
[1741015156553,0.28530962,90283.0,90282.0,0.0001699]
[1741015156758,0.11916562,90283.0,90282.0,0.0001699]
[1741015156958,0.28530962,90283.0,90282.0,0.0001699]
[1741015157366,0.28530962,90283.0,90282.0,0.0041699]
[1741015157367,0.28630962,90283.0,90282.0,0.0041699]
[1741015157778,0.266182,90262.0,90261.0,0.0001698]
[1741015157935,0.1,90262.0,90261.0,0.00028936]
[1741015158326,0.1,90282.0,90261.0,0.00028936]
[1741015158527,0.1,90269.0,90261.0,0.00028936]
[1741015158728,0.01916562,90283.0,90261.0,0.00028936]
[1741015158729,0.1,90262.0,90261.0,0.00028936]
[1741015159586,0.1,90269.0,90261.0,0.00028936]
[1741015159756,0.1,90266.0,90261.0,0.00028936]
[1741015160205,0.1,90263.0,90261.0,0.00028936]
[1741015160623,0.001,90262.0,90261.0,0.00728936]
[1741015161013,0.001,90262.0,90261.0,0.18101421]
[1741015161225,0.001,90262.0,90261.0,0.00728936]
[1741015161453,0.101,90262.0,90261.0,0.00728936]
[1741015161685,0.101,90262.0,90261.0,0.00028936]
[1741015161686,0.1,90262.0,90261.0,0.00028936]
[1741015161902,0.101,90262.0,90261.0,0.17347336]
[1741015162123,0.101,90262.0,90261.0,0.00728936]
[1741015162739,0.096,90262.0,90261.0,0.00728936]
[1741015163284,0.095,90262.0,90261.0,0.16647336]
[1741015163502,0.096,90262.0,90261.0,0.00728936]
[1741015163846,0.096,90262.0,90261.0,0.00028936]
[1741015164047,0.097,90262.0,90261.0,0.00728936]
[1741015164455,0.11418755,90262.0,90261.0,0.00028936]
[1741015164661,0.11418755,90262.0,90261.0,0.00728936]
[1741015164861,0.11518755,90262.0,90261.0,0.00728936]
[1741015165141,0.11518755,90262.0,90261.0,0.00028936]
[1741015165463,0.11518755,90262.0,90261.0,0.16647336]
[1741015165661,0.02018755,90262.0,90261.0,0.18101421]
[1741015165883,0.001,90262.0,90261.0,0.18101421]
[1741015166089,0.096,90262.0,90261.0,0.00028936]
[1741015167120,0.097,90262.0,90261.0,0.00728936]
[1741015167320,0.095,90262.0,90261.0,0.00028936]
[1741015167521,0.0003402,90283.0,90265.0,0.166177]
[1741015167522,0.085,90266.0,90265.0,0.166177]
[1741015167664,0.085,90265.0,90261.0,0.00728936]
[1741015167878,0.085,90262.0,90261.0,0.22186636]
[1741015168080,0.085,90262.0,90261.0,0.00028936]
[1741015168331,0.086,90262.0,90261.0,0.00628936]
[1741015168492,0.086,90262.0,90261.0,0.00028936]
[1741015168893,0.086,90262.0,90261.0,0.00628936]
[1741015169504,0.14985896,90262.0,90261.0,0.00628936]
[1741015170050,0.14885896,90262.0,90261.0,0.00028936]
[1741015170344,0.14985896,90262.0,90261.0,0.00728936]
[1741015170563,0.14985896,90262.0,90261.0,0.00028936]
[1741015170971,0.15085896,90262.0,90261.0,0.00728936]
[1741015171396,0.14885896,90262.0,90261.0,0.00028936]
[1741015171530,0.14985896,90262.0,90261.0,0.00728936]
[1741015171753,0.14985896,90262.0,90261.0,0.17347336]
[1741015171951,0.14985896,90262.0,90261.0,0.00028936]
[1741015172161,0.06485896,90262.0,90261.0,0.16647336]
[1741015172560,0.06485896,90262.0,90261.0,0.00028936]
[1741015172561,0.02021661,90262.0,90261.0,0.00028936]
[1741015173133,0.10521661,90262.0,90261.0,0.16647336]
[1741015173319,0.10621661,90262.0,90261.0,0.17247336]
[1741015173482,0.10421661,90262.0,90261.0,0.16647336]
[1741015173685,0.01921661,90262.0,90261.0,0.48701421]
[1741015173889,6.1e-07,90262.0,90261.0,0.48701421]
[1741015174067,6.1e-07,90262.0,90261.0,0.48101421]
[1741015174271,0.00100061,90262.0,90261.0,0.51432721]
[1741015174667,0.0003402,90283.0,90282.0,0.48068685]
[1741015174874,0.0003402,90283.0,90282.0,0.64356685]
[1741015175366,0.0003402,90283.0,90282.0,0.329026]
[1741015175367,0.0853402,90283.0,90282.0,0.329026]
[1741015175561,0.0003402,90283.0,90282.0,0.329026]
[1741015175777,0.0003402,90283.0,90282.0,0.34356685]
[1741015175988,0.0003402,90283.0,90282.0,0.329026]
[1741015176331,0.0003402,90283.0,90282.0,0.34356685]
[1741015176545,0.0853402,90283.0,90282.0,0.16288]
[1741015177148,0.0853402,90283.0,90282.0,0.329026]
[1741015178250,0.0003402,90283.0,90282.0,0.34356685]
[1741015178879,0.0853402,90283.0,90282.0,0.329026]
[1741015179464,0.0853402,90283.0,90282.0,0.16288]
[1741015179696,0.0853402,90283.0,90282.0,0.329026]
[1741015180534,0.0853402,90283.0,90282.0,0.16288]
[1741015180732,0.085,90272.0,90271.0,0.166166]
[1741015181144,0.085,90272.0,90271.0,0.466166]
[1741015181523,0.085,90272.0,90271.0,0.3]
[1741015181723,0.085,90262.0,90261.0,0.22186736]
[1741015182249,0.085,90262.0,90261.0,0.16647336]
[1741015182405,0.085,90262.0,90261.0,0.46647336]
[1741015183311,0.085,90262.0,90261.0,0.00028936]
[1741015183530,0.085,90262.0,90261.0,0.16647336]
[1741015183742,0.085,90262.0,90261.0,0.00028936]
[1741015183955,0.085,90262.0,90261.0,0.22186736]
[1741015184871,0.085,90262.0,90261.0,0.23640821]
[1741015185107,0.085,90272.0,90271.0,0.166166]
[1741015185704,0.01771138,90283.0,90261.0,0.00028936]
[1741015185705,0.085,90262.0,90261.0,0.00028936]
[1741015185903,0.085,90262.0,90261.0,0.22186636]
[1741015186083,0.085,90262.0,90261.0,0.52186636]
[1741015186613,0.085,90272.0,90271.0,0.166166]
[1741015188413,0.085,90266.0,90265.0,0.166177]
[1741015188931,0.085,90275.0,90274.0,0.16616]
[1741015189341,0.0003402,90283.0,90274.0,0.16616]
[1741015189342,0.0003402,90283.0,90275.0,0.3]
[1741015189538,0.0003402,90283.0,90282.0,0.466146]
[1741015189700,0.0003402,90283.0,90282.0,0.48068685]
[1741015190398,0.0003402,90283.0,90282.0,0.466146]
[1741015190574,0.0003402,90283.0,90275.0,0.166158]
[1741015190575,0.085,90276.0,90275.0,0.166158]
[1741015191045,0.085,90276.0,90275.0,0.466158]
[1741015191248,0.0003402,90283.0,90263.0,0.221574]
[1741015191249,0.085,90264.0,90263.0,0.221574]
[1741015191578,0.085,90264.0,90263.0,0.23611485]
[1741015191779,0.085,90264.0,90263.0,0.39851485]
[1741015192407,0.085,90264.0,90263.0,0.69851485]
[1741015192580,0.085,90264.0,90263.0,0.4624]
[1741015192783,0.085,90264.0,90263.0,0.328581]
[1741015192995,0.01771069,90283.0,90263.0,0.1624]
[1741015193193,0.085,90273.0,90270.0,0.221555]
[1741015193414,0.0003402,90283.0,90270.0,0.221555]
[1741015193415,0.085,90271.0,90270.0,0.221555]
[1741015193793,0.085,90271.0,90268.0,0.22156]
[1741015193992,0.085,90271.0,90263.0,0.1624]
[1741015193993,0.085,90264.0,90263.0,0.383973]
[1741015194410,0.085,90273.0,90263.0,0.17694085]
[1741015194611,0.0003402,90283.0,90263.0,0.17694085]
[1741015194612,0.0003402,90283.0,90266.0,0.01454085]
[1741015194813,0.0003402,90283.0,90282.0,0.18068685]
[1741015195012,0.01736869,90311.0,90283.0,0.31454085]
[1741015195212,0.09159051,90355.0,90343.0,0.166033]
[1741015195619,0.09159051,90355.0,90342.0,0.16232]
[1741015195795,0.05827851,90355.0,90343.0,0.166033]
[1741015196249,0.0003404,90356.0,90342.0,0.16232]
[1741015196627,0.00073784,90344.0,90327.0,0.16228]
[1741015196828,0.00073784,90344.0,90280.0,0.02020248]
[1741015197034,0.00193751,90343.0,90289.0,0.221509]
[1741015197233,0.00193751,90343.0,90290.0,0.1622]
[1741015197234,0.1,90333.0,90290.0,0.1622]
[1741015197435,0.1,90333.0,90282.0,0.7]
[1741015197436,0.3,90325.0,90282.0,0.7]
[1741015197642,0.166094,90311.0,90283.0,0.1622]
[1741015197870,0.00193785,90324.0,90283.0,0.1622]
[1741015198342,0.221422,90325.0,90293.0,0.3]
[1741015198743,0.01736534,90333.0,90293.0,0.3]
[1741015198946,0.00193764,90332.0,90299.0,0.166114]
[1741015199147,0.166073,90322.0,90297.0,0.166118]
[1741015199350,0.3,90331.0,90293.0,0.3]
[1741015199552,0.3,90331.0,90286.0,0.31454085]
[1741015199553,0.00193769,90330.0,90286.0,0.31454085]
[1741015199753,0.00193769,90330.0,90300.0,0.23602385]
[1741015199754,0.01736554,90324.0,90300.0,0.23602385]
[1741015199956,0.01736554,90324.0,90308.0,0.166096]
[1741015200164,0.3,90331.0,90288.0,0.3]
[1741015200389,0.00193755,90330.0,90286.0,0.01158898]
[1741015200562,0.00039784,90333.0,90286.0,0.01158898]
[1741015200563,0.00039784,90333.0,90287.0,0.16212]
[1741015200763,0.00039784,90333.0,90286.0,0.01158898]
[1741015200764,0.221407,90331.0,90286.0,0.16212]
[1741015200971,0.00193791,90330.0,90286.0,0.16212]
[1741015201176,0.01736549,90320.0,90287.0,0.01454085]
[1741015201348,0.01736549,90320.0,90291.0,0.31454085]
[1741015201728,0.00039784,90333.0,90291.0,0.31454085]
[1741015201969,0.00039784,90333.0,90311.0,0.3]
[1741015202180,0.00039784,90333.0,90292.0,0.15863702]
[1741015202181,0.00039784,90333.0,90322.0,0.01454085]
[1741015202382,0.00039784,90333.0,90325.0,0.0468]
[1741015202607,0.00039784,90333.0,90326.0,0.01454085]
[1741015203581,0.0481,90408.0,90328.0,0.4]
[1741015203724,0.0003402,90333.0,90331.0,0.01454085]
[1741015203922,0.0003402,90333.0,90332.0,0.40883702]
[1741015204126,0.00045928,90344.0,90334.0,0.01454085]
[1741015204322,0.00045928,90344.0,90337.0,0.01454085]
[1741015205742,0.00045928,90344.0,90331.0,0.31454085]
[1741015206093,1.0,90420.0,90336.0,0.0999998]
[1741015206295,1.0,90420.0,90335.0,0.31454085]
[1741015206296,1.0,90420.0,90348.0,0.01454085]
[1741015206521,1.0,90420.0,90350.0,0.31454085]
[1741015206724,1.0,90420.0,90352.0,0.31454085]
[1741015206933,1.0,90420.0,90354.0,0.31454085]
[1741015207088,1.0,90420.0,90356.0,0.31454085]
[1741015207293,1.0,90420.0,90360.0,0.01454085]
[1741015207554,1.0,90420.0,90365.0,0.3]
[1741015207976,1.0,90420.0,90366.0,0.16184]
[1741015208176,1.0,90420.0,90362.0,0.01454085]
[1741015208177,0.30193565,90419.0,90336.0,0.049]
[1741015208321,1.0,90420.0,90353.0,0.004438]
[1741015208522,0.00045968,90374.0,90361.0,0.01454085]
[1741015208727,0.00045968,90374.0,90361.0,0.31454085]
[1741015208922,0.00045968,90374.0,90366.0,0.1]
[1741015209124,0.00045968,90374.0,90363.0,0.01454085]
[1741015209402,0.00045968,90374.0,90364.0,0.10883702]
[1741015209795,0.00045968,90374.0,90373.0,0.48051885]
[1741015210303,0.00045968,90374.0,90373.0,0.64227885]
[1741015210503,1.0,90420.0,90395.0,0.465938]
[1741015210678,1.0,90420.0,90419.0,0.465894]
[1741015210884,0.29905291,90420.0,90419.0,0.64215485]
[1741015211085,0.00201,90449.0,90448.0,0.165841]
[1741015211287,0.00201,90449.0,90448.0,0.48038185]
[1741015211467,0.00240811,90449.0,90448.0,0.48038185]
[1741015213031,0.00240811,90449.0,90448.0,0.31454085]
[1741015213233,0.00240811,90449.0,90448.0,0.3]
[1741015213437,0.00240811,90449.0,90448.0,0.16164]
[1741015214059,0.00240811,90449.0,90390.0,0.45030728]
[1741015214216,0.00240811,90449.0,90358.0,1.106708]
[1741015214217,0.00240811,90449.0,90419.0,0.01139744]
[1741015214420,0.01734104,90438.0,90419.0,0.17299744]
[1741015214628,0.01734104,90438.0,90419.0,0.1616]
[1741015215015,0.00240811,90449.0,90419.0,0.1616]
[1741015215210,0.165841,90448.0,90419.0,0.327494]
[1741015215426,0.00021069,90449.0,90419.0,0.1616]
[1741015215851,0.00214572,90449.0,90419.0,0.1616]
[1741015216007,0.3,90447.0,90408.0,0.16152]
[1741015216213,0.00193529,90446.0,90408.0,0.16152]
[1741015216411,0.00193511,90446.0,90408.0,0.16152]
[1741015216816,0.00193511,90446.0,90375.0,0.00832937]
[1741015217010,0.00193511,90446.0,90376.0,0.16148]
[1741015217241,0.00038079,90449.0,90377.0,0.331942]
[1741015217242,0.3,90440.0,90377.0,0.331942]
[1741015217594,0.00231614,90449.0,90400.0,0.45030728]
[1741015217595,0.00038079,90449.0,90400.0,0.45030728]
[1741015217749,0.00038079,90449.0,90411.0,0.31454085]
[1741015217954,0.00038079,90449.0,90419.0,0.3]
[1741015218155,0.00038079,90449.0,90448.0,0.48038185]
[1741015219535,0.00038079,90449.0,90448.0,0.465841]
[1741015219940,0.00038079,90449.0,90420.0,0.194693]
[1741015220281,0.00038079,90449.0,90435.0,0.31454085]
[1741015220551,0.00038079,90449.0,90448.0,0.18038185]
[1741015220693,0.00038079,90449.0,90435.0,0.3]
[1741015220893,0.00038079,90449.0,90431.0,0.3]
[1741015221110,0.00038079,90449.0,90434.0,0.221155]
[1741015221310,0.00038079,90449.0,90433.0,0.3]
[1741015221514,0.00038079,90449.0,90434.0,0.16132]
[1741015221709,0.00038079,90449.0,90436.0,0.3]
[1741015221911,0.00038079,90449.0,90423.0,0.01454085]
[1741015221912,0.00038079,90449.0,90423.0,0.017336]
[1741015222115,0.0456,90446.0,90423.0,0.017336]
[1741015222468,0.34753522,90446.0,90405.0,0.16128]
[1741015222682,0.165872,90432.0,90405.0,0.165919]
[1741015222911,0.221163,90432.0,90403.0,0.165921]
[1741015223118,0.01734485,90426.0,90401.0,0.16128]
[1741015223327,0.01734485,90426.0,90375.0,0.221299]
[1741015223465,0.22118,90424.0,90384.0,0.221278]
[1741015223669,0.221177,90425.0,90385.0,0.23581485]
[1741015223892,0.01734485,90426.0,90374.0,0.03327]
[1741015224094,0.01131566,90435.0,90375.0,0.16124]
[1741015224095,0.00193557,90425.0,90375.0,0.16124]
[1741015224302,0.00193558,90434.0,90388.0,0.221267]
[1741015224563,0.01734536,90414.0,90375.0,0.16124]
[1741015224787,0.01734536,90414.0,90392.0,0.01454085]
[1741015224986,0.3,90434.0,90375.0,0.17305614]
[1741015225200,0.165906,90413.0,90383.0,0.221278]
[1741015225317,0.01454085,90433.0,90361.0,0.002]
[1741015225518,0.165917,90407.0,90380.0,0.165965]
[1741015225717,0.3,90424.0,90380.0,0.00018742]
[1741015225933,0.0825,90431.0,90381.0,0.1612]
[1741015226313,0.0825,90431.0,90384.0,0.31454085]
[1741015226465,0.0825,90431.0,90382.0,0.31454085]
[1741015226666,0.22117,90428.0,90382.0,0.3]
[1741015226881,0.0825,90431.0,90383.0,0.01454085]
[1741015227086,0.0456,90446.0,90400.0,0.45030728]
[1741015227087,0.1268,90446.0,90400.0,0.45030728]
[1741015227287,0.1268,90446.0,90401.0,0.31454085]
[1741015227465,0.1268,90446.0,90415.0,0.01454085]
[1741015227667,0.1268,90446.0,90402.0,0.01454085]
[1741015227867,0.1268,90446.0,90380.0,0.0999998]
[1741015227868,0.0812,90461.0,90448.0,0.165841]
[1741015228077,0.0812,90461.0,90448.0,0.326961]
[1741015228275,0.0003404,90465.0,90448.0,0.326961]
[1741015228276,0.0003404,90465.0,90448.0,0.64150185]
[1741015228550,0.0005681,90449.0,90448.0,0.64150185]
[1741015228778,0.0005681,90449.0,90448.0,0.65285054]
[1741015229456,0.0005681,90449.0,90448.0,0.64150185]
[1741015229870,0.0005681,90449.0,90448.0,0.65315111]
[1741015230073,0.0003404,90465.0,90464.0,0.465811]
[1741015230388,0.00045975,90465.0,90464.0,0.48035185]
[1741015230751,0.0023496,90475.0,90474.0,0.465793]
[1741015230974,0.0023496,90475.0,90474.0,0.48033385]
[1741015231614,0.0023496,90475.0,90474.0,0.51045696]
[1741015231828,0.0023496,90475.0,90474.0,0.53711004]
[1741015231990,0.0003408,90477.0,90476.0,0.514589]
[1741015231991,2e-07,90477.0,90476.0,0.514589]
[1741015232241,2e-07,90477.0,90476.0,0.69474303]
[1741015232449,0.01732605,90532.0,90492.0,0.46576]
[1741015232650,0.01732605,90532.0,90497.0,0.465751]
[1741015232798,0.00045971,90498.0,90497.0,0.465751]
[1741015233018,0.00045971,90498.0,90497.0,0.5242541]
[1741015233219,0.00045971,90498.0,90497.0,0.53879495]
[1741015234171,0.00045971,90498.0,90497.0,0.50869188]
[1741015234663,0.0001701,90537.0,90510.0,0.1]
[1741015234823,0.0001701,90537.0,90501.0,0.44198]
[1741015234824,2e-07,90540.0,90530.0,0.1]
[1741015235018,0.00201,90554.0,90553.0,0.48018885]
[1741015235221,0.00201,90554.0,90553.0,0.5513849]
[1741015235421,8.5e-07,90554.0,90553.0,0.76022192]
[1741015235658,0.046,90628.0,90577.0,0.3]
[1741015235857,0.046,90628.0,90576.0,0.5]
[1741015235858,0.00201,90632.0,90598.0,0.465566]
[1741015236067,0.02011937,90599.0,90598.0,0.65537971]
[1741015236265,0.00201,90632.0,90605.0,0.465553]
[1741015237030,0.00201,90632.0,90605.0,1.15273002]
[1741015237158,0.00201,90632.0,90605.0,1.08893087]
[1741015237729,0.00201,90632.0,90605.0,0.48009385]
[1741015239489,0.00201,90632.0,90605.0,0.64069385]
[1741015241732,0.00201,90632.0,90605.0,0.48009385]
[1741015241934,0.00201,90632.0,90605.0,0.64057385]
[1741015242709,0.00201,90632.0,90581.0,0.03319]
[1741015242912,0.0821,90608.0,90588.0,0.16044]
[1741015243090,0.0821,90608.0,90587.0,0.00011937]
[1741015243091,0.0464,90605.0,90587.0,0.00011937]
[1741015243307,0.0504095,90605.0,90587.0,0.00011937]
[1741015243523,0.00193166,90604.0,90587.0,0.00011937]
[1741015243752,0.165584,90588.0,90587.0,0.00011937]
[1741015243958,0.2,90600.0,90544.0,0.01135048]
[1741015244130,0.3455,90572.0,90544.0,0.01135048]
[1741015244342,0.3,90570.0,90544.0,0.01135048]
[1741015244472,0.00193257,90569.0,90544.0,0.01135048]
[1741015244672,0.00193257,90569.0,90531.0,0.1604]
[1741015244879,0.1,90559.0,90532.0,0.16036]
[1741015245076,0.077,90557.0,90532.0,0.16036]
[1741015245330,0.242642,90557.0,90532.0,0.16036]
[1741015245566,0.18297313,90551.0,90532.0,0.16036]
[1741015245752,0.01732113,90551.0,90480.0,0.45030728]
[1741015245951,0.0488,90549.0,90493.0,0.16036]
[1741015246153,0.220888,90544.0,90506.0,0.220978]
[1741015246311,0.0488,90549.0,90500.0,0.45030728]
[1741015246728,0.0488,90549.0,90493.0,0.16036]
[1741015246729,0.0488,90549.0,90511.0,0.3]
[1741015246959,0.00011903,90549.0,90525.0,0.220933]
[1741015247155,0.00011903,90549.0,90525.0,0.220932]
[1741015247372,0.00011903,90549.0,90512.0,0.3]
[1741015247582,0.00011903,90549.0,90548.0,0.3]
[1741015247785,0.00011903,90549.0,90548.0,0.47482085]
[1741015248394,0.00011903,90549.0,90548.0,0.58365787]
[1741015249291,0.00011903,90549.0,90548.0,0.47482085]
[1741015249467,0.00011903,90549.0,90548.0,0.48333509]
[1741015249674,0.00011903,90549.0,90548.0,0.47482085]
[1741015251452,0.00011903,90549.0,90548.0,0.46028]
[1741015252108,0.00011903,90549.0,90548.0,0.64047785]
[1741015253097,0.00011903,90549.0,90548.0,0.625937]
[1741015253723,0.00011903,90549.0,90548.0,0.64047785]
[1741015253996,0.0001695,90587.0,90586.0,0.465588]
[1741015254192,0.0001695,90587.0,90586.0,0.64020885]
[1741015254193,0.00028871,90587.0,90586.0,0.64020885]
[1741015254872,0.00028871,90587.0,90586.0,0.46008]
[1741015255823,0.00028871,90587.0,90586.0,0.625668]
[1741015256045,0.00028871,90587.0,90586.0,0.64020885]
[1741015257173,0.00028871,90587.0,90586.0,0.46008]
[1741015257316,0.00028871,90587.0,90586.0,0.16008]
[1741015258406,0.00028871,90587.0,90575.0,0.3]
[1741015258631,0.00028871,90587.0,90575.0,0.45996]
[1741015258764,0.00028871,90587.0,90576.0,0.220809]
[1741015258967,0.00028871,90587.0,90575.0,0.45996]
[1741015259193,0.00028871,90587.0,90575.0,0.15996]
[1741015259975,0.00028871,90587.0,90576.0,0.165606]
[1741015260177,0.00028871,90587.0,90553.0,0.01454085]
[1741015260178,0.0778,90586.0,90530.0,0.45030728]
[1741015260375,0.04813201,90585.0,90532.0,0.15992]
[1741015260803,0.00516546,90584.0,90532.0,0.15992]
[1741015260957,0.420797,90581.0,90513.0,0.033213]
[1741015261164,0.420797,90581.0,90494.0,0.0477]
[1741015261165,0.01731624,90572.0,90510.0,0.45030728]
[1741015261364,0.00193258,90571.0,90512.0,0.15988]
[1741015261627,0.00709303,90571.0,90520.0,0.45030728]
[1741015261948,0.00516045,90571.0,90531.0,0.01454085]
[1741015262160,0.00516045,90571.0,90570.0,0.165617]
[1741015262333,0.01731624,90572.0,90570.0,0.15984]
[1741015262763,0.01731624,90572.0,90571.0,0.165615]
[1741015263073,0.220764,90595.0,90570.0,0.15984]
[1741015263216,0.00201,90606.0,90576.0,0.165606]
[1741015263217,0.01731424,90577.0,90576.0,0.165606]
[1741015263422,0.01731424,90577.0,90576.0,0.465606]
[1741015263791,0.01731424,90577.0,90576.0,0.49159735]
[1741015263941,0.0813,90601.0,90586.0,0.465588]
[1741015264318,0.0813,90601.0,90586.0,0.3]
[1741015264521,0.0813,90601.0,90570.0,0.15984]
[1741015264749,0.0001696,90571.0,90570.0,0.65150905]
[1741015266165,6e-07,90571.0,90570.0,0.65150905]
[1741015266352,6e-07,90571.0,90570.0,1.26034607]
[1741015266554,6e-07,90571.0,90570.0,0.61122905]
[1741015267357,6e-07,90571.0,90570.0,1.22006607]
[1741015267740,3.1e-07,90587.0,90586.0,0.465588]
[1741015268084,3.1e-07,90587.0,90586.0,0.48012885]
[1741015268340,0.00201,90606.0,90586.0,0.48012885]
[1741015268341,0.00201,90606.0,90605.0,0.465553]
[1741015268531,0.00201,90606.0,90605.0,0.48009385]
[1741015269093,0.00201,90606.0,90605.0,0.465553]
[1741015269289,0.00201,90606.0,90605.0,0.165553]
[1741015269491,0.00201,90606.0,90580.0,0.45030728]
[1741015269492,0.00201,90606.0,90590.0,0.45030728]
[1741015269697,0.00201,90606.0,90591.0,0.3]
[1741015269872,0.00201,90606.0,90575.0,0.15964]
[1741015269873,0.00201,90606.0,90605.0,0.165553]
[1741015270484,0.01730587,90633.0,90631.0,0.165506]
[1741015270709,3.0,90639.0,90631.0,0.18004685]
[1741015270886,3.0,90639.0,90617.0,0.1596]
[1741015271086,0.00212919,90632.0,90631.0,0.165506]
[1741015271295,0.00212919,90632.0,90631.0,0.48004685]
[1741015273373,0.00212919,90632.0,90631.0,0.49123083]
[1741015273737,0.00212919,90632.0,90612.0,0.00834133]
[1741015274096,0.00212919,90632.0,90610.0,0.45030728]
[1741015274279,0.00212919,90632.0,90631.0,0.165506]
[1741015274419,0.00212919,90632.0,90631.0,0.465506]
[1741015274626,0.00212919,90632.0,90610.0,0.01149992]
[1741015274824,0.00212919,90632.0,90613.0,0.220717]
[1741015275070,0.1239,90630.0,90599.0,0.01147817]
[1741015275228,0.165512,90628.0,90603.0,0.165555]
[1741015275422,0.165512,90628.0,90580.0,0.45030728]
[1741015275423,0.00524065,90629.0,90590.0,0.45030728]
[1741015275674,0.1239,90630.0,90611.0,0.01454085]
[1741015276016,0.1239,90630.0,90615.0,0.3]
[1741015276187,0.1239,90630.0,90617.0,0.220708]
[1741015276427,0.1239,90630.0,90615.0,0.3]
[1741015276611,0.1239,90630.0,90600.0,0.45030728]
[1741015276612,0.00212919,90632.0,90631.0,0.465506]
[1741015276813,0.00212919,90632.0,90631.0,0.48004685]
[1741015277068,0.00229879,90632.0,90631.0,0.48004685]
[1741015277324,0.00229879,90632.0,90631.0,0.3]
[1741015277713,0.00229879,90632.0,90631.0,0.48004685]
[1741015280982,0.00229879,90632.0,90631.0,1.56684399]